Cogmind - Beta 9.3 @@@ ROGUE MODE // 2019.12.21 @ 14:12:37 Player: Andru7428 Result: Destroyed self with Rocket Launcher Performance ------------- Evolutions (1) 500 Regions Visited (4) 800 Robots Destroyed (61) 305 Value Destroyed (1044) 1044 Prototype IDs (2) 40 Alien Tech Used (0) 0 Bonus (0) 0 TOTAL SCORE: 2689 Bonus ------- None Cogmind --------- Core Integrity 0/400 Matter 205/300 Energy 265/265 System Corruption 7% Temperature Cool (0) Movement Core (750) Ox14 Location -9/Mines Parts ------- > --- POWER (1) -------- Improved Ion Engine > --- PROPULSION (2) --- (None) > --- UTILITY (4) ------ Large Storage Unit Large Storage Unit > --- WEAPON (2) ------- Rocket Launcher > --- INVENTORY (16) --- Improved Ion Engine Light Nuclear Core Aluminum Leg Wheel Wheel Large Storage Unit Large Storage Unit Core Shielding Hardened Light Armor Plating Beam Rifle Light EM Pulse Cannon Heavy Assault Rifle Heavy Assault Rifle Light Cannon Katana Peak State ------------ > --- POWER ------------ Improved Ion Engine > --- PROPULSION ------- Wheel Wheel > --- UTILITY ---------- Heat Sink Large Storage Unit Large Storage Unit Light Armor Plating > --- WEAPON ----------- Light EM Pulse Cannon Heavy Assault Rifle > --- INVENTORY -------- Improved Ion Engine Light Nuclear Core Aluminum Leg Wheel Large Storage Unit Large Storage Unit Core Shielding Beam Rifle Heavy Assault Rifle Light Cannon Rocket Launcher Katana [Rating: 14] Favorites ----------- Power Ion Engine Engine Ion Engine Propulsion Wheel Leg Aluminum Leg Wheel Wheel Utility Large Storage Unit Device Disposable Heat Sink Storage Large Storage Unit Protection Light Armor Plating Weapon Spread Laser Energy Gun Spread Laser Energy Cannon Light EM Pulse Cannon Ballistic Gun Heavy Assault Rifle Launcher Grenade Launcher Build | -11 -10 -10 -9 -9 ------- Run | Scr Mat Min Mat Min Slots Evolved 2 | . . . 2 . Power . | . . . . . Propulsion . | . . . . . Utility 2 | . . . 2 . Weapon . | . . . . . Parts Attached 48 | 6 14 6 20 2 Power 4 | 1 1 . 2 . Engine 4 | 1 1 . 2 . Core . | . . . . . Reactor . | . . . . . Propulsion 12 | 2 3 . 7 . Treads . | . . . . . Leg 2 | . . . 2 . Wheel 10 | 2 3 . 5 . Hover . | . . . . . Flight . | . . . . . Utility 10 | 1 2 . 6 1 Device 4 | . 1 . 2 1 Storage 3 | 1 1 . 1 . Processor . | . . . . . Hackware . | . . . . . Protection 3 | . . . 3 . Artifact . | . . . . . Weapon 22 | 2 8 6 5 1 Energy Gun 12 | 1 6 4 1 . Energy Cannon 1 | . . . 1 . Ballistic Gun 3 | 1 . . 2 . Ballistic Cannon . | . . . . . Launcher 6 | . 2 2 1 1 Special Weapon . | . . . . . Impact Weapon . | . . . . . Slashing Weapon . | . . . . . Piercing Weapon . | . . . . . Special Melee Weapon . | . . . . . Unidentified Prototypes . | . . . . . Parts Lost 22 | . 1 2 13 6 Power 3 | . 1 . 2 . Propulsion 7 | . . . 5 2 Utility 5 | . . . 2 3 Weapon 7 | . . 2 4 1 Highest Loss Streak 10 | . 1 1 10 5 Average Slot Usage (%) 94 | . 99 100 80 97 Engine 12 | . 14 14 10 11 Wheel 23 | . 28 28 15 21 Device 10 | . 13 14 6 9 Storage 18 | . 14 14 22 22 Protection 4 | . . . 8 10 Energy Gun 15 | . 27 27 7 . Energy Cannon 3 | . . . 3 10 Ballistic Gun 3 | . . . 3 10 Naked Turns . | . . . . . Heaviest Build 50 | 9 28 28 50 50 Greatest Support 26 | 26 26 20 20 20 Greatest Overweight (x) 14 | . 1 1 14 2 Average Overweight (x) 1 | . . 1 2 2 Largest Inventory Capacity 16 | 6 10 10 16 16 Average Capacity 11 | 5 6 10 16 16 Most Carried 15 | 4 8 8 8 15 Average Carried 7 | 1 5 6 4 12 Final Capacity 16 | 6 10 10 16 16 Final Carried 15 | 4 8 6 6 15 Class Distribution -------------------- 69% | Mutant 30% | Scavenger-Mutant Dominant Class ---------------- Mutant | -10/Materials Mutant | -10/Mines Mutant | -9/Materials Scavenger-Mutant | -9/Mines Resources | -11 -10 -10 -9 -9 ----------- Run | Scr Mat Min Mat Min Matter Collected 782 | 175 250 82 224 51 Remotely . | . . . . . Salvage Created 1189 | . 313 92 566 218 Parts 93 | . 33 13 36 11 Haulers Intercepted 1 | . 1 . . . Recyclers Shooed 1 | . . . 1 . Parts Field Recycled . | . . . . . Retrieved Matter . | . . . . . Parts Self-Destructed . | . . . . . Prevented . | . . . . . Kills | -11 -10 -10 -9 -9 ------- Run | Scr Mat Min Mat Min Combat Hostiles Destroyed 47 | . 12 9 14 12 Guns 18 | . 7 6 4 1 Cannons 11 | . . . 6 5 AOE 18 | . 5 3 4 6 Classes Destroyed 12 | . 7 . 3 2 Worker 7 | . 1 1 3 2 Builder 2 | . 2 . . . Tunneler 1 | . 1 . . . Hauler 1 | . 1 . . . Recycler 1 | . . . 1 . Watcher 2 | . 2 . . . Swarmer 21 | . 6 9 3 3 Grunt 14 | . 6 . 7 1 Brawler 1 | . . . 1 . Duelist 1 | . . . . 1 Sentry 3 | . . . 3 . Assembled 7 | . . . . 7 Best Kill Streak 7 | . 6 4 4 7 Combat Bots Only 7 | . 4 3 4 7 Max Kills in Single Turn 5 | . 5 1 2 3 Gunslinging . | . . . . . Exploded 3 | . 3 1 2 3 Melee . | . . . . . Uniques/NPCs Destroyed . | . . . . . Combat | -11 -10 -10 -9 -9 -------- Run | Scr Mat Min Mat Min Damage Taken 2081 | . 236 198 1096 551 Core 487 | . 44 30 257 156 Absorbed by Shields . | . . . . . Core Remaining (%) 85 | 100 . 70 . . Volleys Fired 117 | . 29 13 49 26 Largest 2 | . 2 2 2 2 Hottest 130 | . 130 130 130 89 Shots Fired 186 | . 55 22 69 40 Gun 134 | . 51 18 52 13 Cannon 28 | . . . 11 17 Launcher 24 | . 4 4 6 10 Special . | . . . . . Kinetic 31 | . . . 18 13 Thermal 103 | . 51 18 34 . Explosive 24 | . 4 4 6 10 Electromagnetic 28 | . . . 11 17 Robot Hit Streak 10 | . 10 9 10 7 Robot Miss Streak 7 | . 7 6 5 4 Penetration Max . | . . . . . Secondary Targets 2 | . 1 1 . . Max Gunslinging Chain 1 | . 1 1 . . Shots Hit Robots 143 | . 47 17 59 20 Core Hits 146 | . 55 21 49 21 Critical Hits . | . . . . . Critical Kills . | . . . . . Critical Parts Destroyed . | . . . . . Melee Attacks . | . . . . . Impact . | . . . . . Slashing . | . . . . . Piercing . | . . . . . Sneak Attacks . | . . . . . Combat Hostiles . | . . . . . Follow-up Attacks . | . . . . . Damage Inflicted 2971 | . 863 316 969 823 Guns 1110 | . 468 77 471 94 Cannons 460 | . . . 227 233 Explosions 1379 | . 395 239 249 496 Melee . | . . . . . Ramming 22 | . . . 22 . Kinetic 215 | . . . 121 94 Thermal 895 | . 468 77 350 . Explosive 1379 | . 395 239 249 496 Electromagnetic 460 | . . . 227 233 Impact . | . . . . . Slashing . | . . . . . Piercing . | . . . . . Highest Corruption 7 | . . . 5 7 Average Corruption 5 | . . . 5 5 Corruption Purged . | . . . . . Effects 18 | . . . 8 10 Message Errors 3 | . . . . 3 Matter Fused 2 | . . . 1 1 Energy Discharges 3 | . . . 2 1 Data Loss (minor) 1 | . . . . 1 Data Loss (major) 2 | . . . . 2 Misfires 2 | . . . 1 1 Targeting Errors 4 | . . . 4 . Weapon Failures 1 | . . . . 1 Overload Shots . | . . . . . Overflow Damage 66 | . . . 32 34 Projectiles 16 | . . . . 16 Explosions 50 | . . . 32 18 Melee . | . . . . . Knockbacks . | . . . . . Impact . | . . . . . Kinetic . | . . . . . Secondary . | . . . . . Self-Inflicted Damage 153 | . . . 39 114 Shots 4 | . . . 1 3 Rammed 11 | . . . 11 . Targets Rammed 11 | . . . 11 . Kicked . | . . . . . Crushed . | . . . . . Highest Temperature 323 | . 199 187 323 135 Average Temperature 87 | . 92 95 88 51 Received Heat Transfer 531 | . 108 . 387 36 Siege Activations . | . . . . . Robots Corrupted . | . . . . . Combat Hostiles . | . . . . . Parts Fried 1 | . . . 1 . Impact Corruptions . | . . . . . Robots Melted . | . . . . . Combat Hostiles . | . . . . . Parts Melted . | . . . . . Heat Transferred 1135 | . 580 100 455 . Parts Sabotaged . | . . . . . Parts Stolen . | . . . . . Parts Stripped . | . . . . . Power Chain Reactions 1 | . . . 1 . Missiles Intercepted . | . . . . . Alert | -11 -10 -10 -9 -9 ------- Run | Scr Mat Min Mat Min Peak Influence 335 | . 335 255 314 142 Average Influence 116 | . 116 91 149 106 Maximum Alert Level 1 | . 1 1 1 . Low Security (%) 89 | 100 84 92 84 100 Level 1 10 | . 15 7 15 . Level 2 . | . . . . . Level 3 . | . . . . . Level 4 . | . . . . . Level 5 . | . . . . . High Security . | . . . . . Max Security . | . . . . . Squads Dispatched 3 | . 1 . 2 . Investigation 1 | . 1 . . . Extermination . | . . . . . Reinforcement 2 | . . . 2 . Assault . | . . . . . Garrison . | . . . . . Intercept . | . . . . . Construction Impeded . | . . . . . Haulers Reinforced . | . . . . . Stealth | -11 -10 -10 -9 -9 --------- Run | Scr Mat Min Mat Min Distress Signals 1 | . 1 . . . Communications Jammed . | . . . . . Distress Signals . | . . . . . Times Spotted 62 | . 18 9 16 19 Peak Tracking Total 10 | . 4 3 5 10 Tactical Retreats 4 | . 1 . . 3 Traps | -11 -10 -10 -9 -9 ------- Run | Scr Mat Min Mat Min Traps Triggered 2 | . 1 . 1 . Indirectly . | . . . . . Trap Hack Attempts . | . . . . . Triggered . | . . . . . Disarmed . | . . . . . Reprogrammed . | . . . . . Reused . | . . . . . Traps Extracted . | . . . . . Installed . | . . . . . Triggered . | . . . . . Machines | -11 -10 -10 -9 -9 ---------- Run | Scr Mat Min Mat Min Machines Disabled 5 | . . 3 1 1 Max in Single Turn 3 | . . 3 1 1 Machines Sabotaged . | . . . . . Garrisons Compromised . | . . . . . Overloaded Fab Kills . | . . . . . Fab Network Shutdowns . | . . . . . Hacking | -11 -10 -10 -9 -9 --------- Run | Scr Mat Min Mat Min Machines Accessed 9 | . 7 1 . 1 Terminals 9 | . 7 1 . 1 Fabricators . | . . . . . Repair Stations . | . . . . . Recycling Units . | . . . . . Scanalyzers . | . . . . . Garrison Access . | . . . . . Total Hacks 27 | . 23 1 . 3 Successful 12 | . 11 1 . . Failed 14 | . 11 . . 3 Catastrophic 1 | . 1 . . . Database Lockouts 2 | . 2 . . . Manual 20 | . 16 1 . 3 Terminals 27 | . 23 1 . 3 Fabricators . | . . . . . Repair Stations . | . . . . . Recycling Units . | . . . . . Scanalyzers . | . . . . . Garrison Access . | . . . . . Terminal Hacks 7 | . 7 . . . Part Schematic 1 | . 1 . . . Robot Analysis 1 | . 1 . . . Prototype ID Bank 1 | . 1 . . . Unreport Threat 1 | . 1 . . . Hauler Manifests 1 | . 1 . . . Zone Layout 2 | . 2 . . . Fabricator Hacks . | . . . . . Repair Station Hacks . | . . . . . Recycling Unit Hacks . | . . . . . Scanalyzer . | . . . . . Garrison Access Hacks . | . . . . . Unauthorized Hacks 10 | . 8 2 . . Terminals 5 | . 4 1 . . Track 5 | . 4 1 . . Fabricators . | . . . . . Repair Stations . | . . . . . Recycling Units . | . . . . . Scanalyzers . | . . . . . Garrison Access . | . . . . . Data Cores Recovered . | . . . . . Used . | . . . . . Hacking Detections 8 | . 6 1 . 1 Full Trace Events 2 | . 1 . . 1 Feedback Events . | . . . . . Feedback Blocked . | . . . . . Robot Schematics Acquired . | . . . . . Robots Built . | . . . . . Matter . | . . . . . Time . | . . . . . Total Robot Build Rating . | . . . . . Part Schematics Acquired 1 | . 1 . . . Parts Built . | . . . . . Matter . | . . . . . Time . | . . . . . Total Part Build Rating . | . . . . . Parts Repaired . | . . . . . Time . | . . . . . Parts Recycled . | . . . . . Recycled Matter . | . . . . . Retrieved Matter . | . . . . . Retrieved Components . | . . . . . Parts Scanalyzed . | . . . . . Part Schematics Acquired . | . . . . . Parts Damaged . | . . . . . Bothacking | -11 -10 -10 -9 -9 ------------ Run | Scr Mat Min Mat Min Used RIF Installer . | . . . . . Robots Hacked . | . . . . . Non-combat . | . . . . . Combat . | . . . . . Robot Hacks Applied . | . . . . . Relay Couplers Released . | . . . . . Robots Rewired . | . . . . . Allies Hacked . | . . . . . Hacks Repelled . | . . . . . Allies | -11 -10 -10 -9 -9 -------- Run | Scr Mat Min Mat Min Total Allies . | . . . . . Largest Group . | . . . . . Highest-Rated Group . | . . . . . Highest-Rated Ally . | . . . . . Total Orders . | . . . . . Ally Attacks . | . . . . . Total Damage . | . . . . . Kills . | . . . . . Allies Corrupted . | . . . . . Allies Melted . | . . . . . Intel | -11 -10 -10 -9 -9 ------- Run | Scr Mat Min Mat Min Robot Analysis Total 1 | . 1 . . . Derelict Logs Recovered 3 | . . 2 . 1 Drone Launches . | . . . . . Drone Recoveries . | . . . . . Exploration | -11 -10 -10 -9 -9 ------------- Run | Scr Mat Min Mat Min Turns Passed 2285 | 69 805 287 604 520 Spaces Moved 1661 | 62 687 220 259 433 Core 13 | 4 . . 9 . Treads . | . . . . . Legs 21 | . . . 21 . Wheels 1627 | 58 687 220 229 433 Hover . | . . . . . Flight . | . . . . . Fastest Speed 50 | 50 80 90 90 100 Average Speed 96 | 86 84 90 133 100 Slowest Speed 750 | 90 90 90 750 100 Overloaded Moves . | . . . . . Propulsion Burnouts . | . . . . . Robots Hopped . | . . . . . Cave-ins Triggered . | . . . . . Exploration Rate (%) 51 | 4 97 55 25 76 Regions Visited 4 Branch Regions 2 Pre-discovered Areas 2 | . . . . 2 Known Exits Taken 1 | . . . 1 . Unknown Exits Taken 3 | 1 1 1 . . Scrap Searched 2 | . . 1 . 1 Spaces Dug 9 | . . . . 9 Terrain Destroyed 129 | . 28 26 28 47 Melee . | . . . . . Projectile . | . . . . . AOE 129 | . 28 26 28 47 Actions | -11 -10 -10 -9 -9 --------- Run | Scr Mat Min Mat Min Total 2120 | 77 858 284 420 481 Wait 221 | . 104 46 61 10 Move 1657 | 61 686 219 258 433 Hop . | . . . . . Pick Up 54 | 10 14 . 20 10 Fast Attach 2 | . 2 . . . Attach 30 | 6 2 2 19 1 Detach . | . . . . . Swap 16 | . 10 4 1 1 Drop 12 | . 11 . 1 . Fire 117 | . 29 13 49 26 Melee . | . . . . . Ram 9 | . . . 9 . Kick 2 | . . . 2 . Crush . | . . . . . Escape Stasis . | . . . . . Rewire . | . . . . . Trap . | . . . . . Miscellaneous . | . . . . . Route ------- -11/Scrapyard -10/Materials (discovered 4 exits: [*Mat x3] / *Min) -10/Mines -9/Materials (discovered 2 exits: *Min x2) -9/Mines (discovered 1 exit: [*Mat]) History --------- Turn | Location | Event 3 | -11/Scrapyard | Discovered new exit (range 15) 70 | -11/Scrapyard | Entered Materials 301 | -10/Materials | Build established: Mutant 301 | -10/Materials | Discovered new exit (range 12) 520 | -10/Materials | Discovered new exit (range 9) 587 | -10/Materials | Discovered new exit (range 3) 733 | -10/Materials | Discovered new exit (range 12) 745 | -10/Materials | Central database locked down 875 | -10/Materials | Entered Mines 1134 | -10/Mines | Learned Materials security intel 1141 | -10/Mines | Discovered new exit (range 11) 1162 | -10/Mines | Entered Materials 1162 | -9/Materials | Evolved 2 slots: Utility x2 1163 | -9/Materials | Identified exit to Mines 1309 | -9/Materials | Lost 3 parts (2n1w) 1571 | -9/Materials | Core integrity fell below 50% 1603 | -9/Materials | Lost 10 parts (2p3n2u3w) 1766 | -9/Materials | Entered Mines 1773 | -9/Mines | Received a Rocket Launcher from a helpful Derelict 1867 | -9/Mines | Build established: Scavenger-Mutant 1870 | -9/Mines | Discovered new exit (range 10) 2019 | -9/Mines | Learned location of Storage (-9) 2248 | -9/Mines | Assembled infested the area 2253 | -9/Mines | Assisted by a Guerilla fighting off Assembled 2286 | -9/Mines | Core integrity fell below 20% 2286 | -9/Mines | Destroyed self with Rocket Launcher Last Messages --------------- 02256_ as-73245 sneak attacks. 02266_ as-43994 destroyed. 02266_ Lgt. Armor Plating destroyed. 02266_ Destroyed Lgt. Armor Plating. 02268_ Wheel destroyed. 02269_ Laser Drill disabled. 02271_ Lgt. EM Pulse Cannon destroyed. 02272_ as-16887 destroyed. 02274_ as-74904 destroyed. 02274_ as-34069 destroyed. 02274_ as-17341 destroyed. 02276_ Destroyed Asb. Hover Unit. 02276_ as-87420 destroyed. 02279_ Heat Sink destroyed. 02279_ System corrupted by crushing effect (+2). 02279_ Knocked back. 02282_ U-05 Engineer lays Concrete. 02283_ Wheel destroyed. 02284_ U-05 Engineer lays Concrete. 02286_ as-73245 destroyed. Map ----- +----------------------------------------------------+ | ?????????????????????????????????????????????????? | | ?????????????????????????????????????????????????? | | ?????????????? ??????????????????????????????????? | | ?????????????? ??????????????????????????????????? | | ?????????????? ??????????????????????????????????? | | ?????????????? #?????????????????????????????????? | | ?????????????? ?????????????????????????????????? | | ??????????????# ?????????????????????????????????? | | ??????????????# ??????????????????????????????#### | | ??????????????# ?????????????????????????????? ## | | ??????????????# ??????????????????????????????# ## | | ??????????????# ??????????????????????????????# ## | | ??????????????? ###???????????????????????????# ## | | ?########?????? #???????????????????????????# | | ?# ####?### #???????????????????????????# ## | | ?# ## ?? #???????????????????????????# ## | | ?# ## #???# #???????????????????????????#!## | | ?# ## #?### #???????????????????????#####%#? | | ?#### ### # #??????????????????????## ! #? | | ????# #?#%# #?#???????????????????## #? | | ????# ###%= ### ?????????????????## #? | | ????# *% ##??????????????## ## ## | | ????# % ##????????????# #### # | | ????##### ##?????#?????# ##?## | | ??????## a ## #?????# ##?# | | ?????## a@ #????## #### # | | ?????# ##???## #??## | | ?????# ##???## #???? | | ?????## # ##????# ##???? | | ??????#### ####u ##????## #????? | | ?????????# #??# #?????##### ##????? | | ?????????## #??# #?????????## #?????? | | ??????????## #?## #???######## #?????? | | ???????????# #??## ##???# % #?????? | | ???????????# #### ##???# ##????# ########?????? | | ???????????# #??#####????# #?????# #????????????? | | ???????????# #???????????# #?????# #???????????## | | ???????????# #?????????### ##????# #??????????## | | ???????????# ########### ##???# #????????### | | ???????????# ## #???# #???????## | | ???????????# #???# ###????## | | ???????????# #### % #??## ##??## # | | ???????????# #??## # ### ##??# = #??# # | | ???????????# #???## ## #?# ##???#%= #??#### | | ???????????# #????##### #?# ####?# #?????## | | ???????????# #???????## #?# #?# #?????## | | ??########## ####???## ###### #?# ##????## | | ??# #??## #???# #?# ###????## | | ??# """ """ """ #??# ##??# ### #????### | | ??# """ """ """ #??# #??# ###### # | +----------------------------------------------------+ Best States ------------- Heat Dissipation 38 Coolant Potential 50 Energy Generation 12 Energy Capacity 265 Matter Stores 300 Matter Capacity 300 Sight Range 16 Terrain Scan Density 10 Armor Coverage 150 Evasion (%) 44 Item Schematics ----------------- Wheel | -10/Materials | Hacked Robot Schematics ------------------ None Fabricated ------------ Nothing Alien Tech Used ----------------- None Achievements -------------- None Challenges ------------ None Game ------ Seed DecoderSpectralBoosters Manual? 0 Play Time 00:26:04 Cumulative 39.5 hours Start 2019.12.21 @ 13:47:48 End 2019.12.21 @ 14:12:37 Sessions 1 Manual Loads 0 Difficulty Rogue Special Mode None Game No. 39 Rogue 39 Adventurer 0 Explorer 0 Win Type - Total 0 Types 0/0/0/0/0/0/0 Lore% 34 Gallery% 38 Achievement% 33 Wizard Run 0 Options --------- ASCII 0 Keyboard 0 Movement Mouse Keybinds 0 Fullscreen 2 Font 18/Smallcaps Map View 76x50 Tactical HUD 1 Map Filters NONE Filters NONE Steam 1 RUN: 62972678-2de6-4293-9410-ade963edd53f